bitfinex/quotes_ETHUSD_20220123
["timestamp","ask_amount","ask_price","bid_price","bid_amount"]
[1642968451365,0.81372567,2400.9,2399.9,0.04999999]
[1642968451569,0.2532,2401.2,2400.2,0.90389032]
[1642968451570,0.1666,2401.2,2400.2,0.90389032]
[1642968451770,0.1666,2401.6,2400.2,0.90389032]
[1642968451969,1.51397713,2401.2,2400.2,1.12498088]
[1642968452167,1.51397713,2401.2,2400.3,0.495]
[1642968452769,2.24850612,2401.2,2400.3,0.495]
[1642968452972,0.24996936,2400.8,2400.3,0.495]
[1642968453271,0.24996936,2400.8,2400.2,1.08310088]
[1642968453272,1.60057713,2401.2,2400.2,0.01261056]
[1642968453477,0.1666,2401.1,2399.9,0.04999999]
[1642968453671,0.1666,2401.1,2399.5,0.0122357]
[1642968453871,1.47477577,2400.0,2399.5,0.0122357]
[1642968454071,0.0866,2400.7,2399.5,0.0122357]
[1642968454307,0.6666123,2399.8,2399.5,0.0122357]
[1642968454703,0.0866,2400.5,2399.5,0.0122357]
[1642968454906,0.1666,2400.4,2399.5,0.0122357]
[1642968455103,1.52333466,2399.9,2399.5,0.0122357]
[1642968455711,0.67393419,2399.8,2399.5,0.0122357]
[1642968456015,0.67393419,2399.8,2399.2,0.8099655]
[1642968456411,0.67393419,2399.8,2399.2,0.02]
[1642968457618,0.3652755,2399.7,2399.2,0.02]
[1642968457814,0.1666,2399.6,2399.2,0.0001]
[1642968458060,6.20077003,2399.5,2399.1,3.78440216]
[1642968458254,0.1666,2399.4,2398.9,0.02]
[1642968458455,0.0866,2399.3,2398.9,0.02]
[1642968458660,1.66643695,2399.2,2398.9,0.02]
[1642968458857,0.0866,2399.0,2398.1,0.03299986]
[1642968459066,0.1666,2398.9,2398.1,0.02]
[1642968459257,0.1666,2398.9,2398.1,0.0001]
[1642968459456,6.1,2398.7,2397.5,0.02]
[1642968459659,0.1666,2398.6,2397.5,0.02]
[1642968459857,0.75162316,2398.5,2397.5,0.02]
[1642968460060,1.45880486,2397.9,2397.5,0.02]
[1642968460259,1.69168005,2397.9,2397.5,0.02]
[1642968460560,0.65799771,2398.1,2397.9,2.0940832]
[1642968460757,1.51253075,2398.0,2397.9,2.0940832]
[1642968461162,0.1668,2398.5,2397.9,2.0940832]
[1642968461357,0.1668,2399.1,2397.9,2.0940832]
[1642968461806,0.2534,2399.1,2397.9,2.0940832]
[1642968462012,0.0866,2399.1,2397.9,2.0940832]
[1642968462211,2.00053809,2398.4,2397.9,2.0940832]
[1642968462414,1.36537876,2398.0,2397.9,2.0940832]
[1642968463313,1.36537876,2398.0,2397.4,0.02]
[1642968463517,1.42247237,2397.4,2397.1,0.06999999]
[1642968463913,1.42247237,2397.4,2397.1,0.02]
[1642968464822,4.3,2397.3,2396.4,0.1668]
[1642968465021,6.85525474,2397.3,2396.4,0.1668]
[1642968465215,1.90497237,2397.4,2396.4,0.1668]
[1642968465665,0.0866,2397.3,2396.4,0.1668]
[1642968465864,1.62747237,2397.4,2396.4,0.1668]
[1642968466064,3.10291352,2397.5,2396.2,0.67964545]
[1642968466274,0.1668,2397.5,2396.7,0.46449676]
[1642968466468,0.1668,2397.6,2396.2,0.3]
[1642968466670,0.1668,2397.6,2396.1,0.01264009]
[1642968466868,0.0866,2397.5,2396.1,0.01264009]
[1642968467269,1.24162501,2397.2,2396.4,1.32786262]
[1642968467474,0.1668,2397.8,2397.7,4.2]
[1642968467674,0.00270005,2398.8,2397.7,4.2]
[1642968467675,0.1668,2398.4,2397.7,4.2]
[1642968467872,0.0866,2398.8,2397.7,4.2]
[1642968468469,1.51318801,2398.4,2397.7,4.5]
[1642968468672,0.75162315,2398.2,2397.7,0.88722493]
[1642968468878,0.75162315,2398.2,2397.2,0.01219276]
[1642968469310,0.78822315,2398.2,2397.2,0.01219276]
[1642968469509,1.27822534,2397.4,2397.2,0.01219276]
[1642968469715,1.27822534,2397.4,2397.0,0.1668]
[1642968470116,0.1668,2397.9,2397.0,0.1668]
[1642968470312,0.70162315,2398.2,2397.0,0.1668]
[1642968470715,0.0866,2398.1,2397.0,0.1668]
[1642968470918,4.33341985,2398.1,2397.0,0.1668]
[1642968471119,2.40322805,2398.0,2397.0,0.1668]
[1642968471324,3.41893352,2397.9,2397.0,0.1668]
[1642968471519,1.0,2397.8,2397.0,0.1668]
[1642968471717,2.92691289,2397.7,2397.0,0.1668]
[1642968471915,3.99951177,2397.6,2397.0,0.1668]
[1642968472119,0.1668,2397.5,2397.0,0.1668]
[1642968472519,0.2534,2397.5,2397.0,0.1668]
[1642968474458,0.2534,2397.5,2396.5,0.88635251]
[1642968474659,1.38490762,2396.8,2396.5,0.88635251]
[1642968474860,1.38490762,2396.8,2396.5,0.28635251]
[1642968475062,0.1668,2397.5,2396.5,0.58635251]
[1642968475262,1.3809,2398.2,2396.7,0.01288313]
[1642968475463,1.2141,2398.2,2396.7,0.01288313]
[1642968475663,0.1668,2398.3,2396.7,0.22136313]
[1642968475863,2.35284068,2398.4,2397.3,0.01244212]
[1642968476061,2.35284068,2398.4,2397.5,0.30778969]
[1642968476062,1.14920243,2397.9,2397.5,0.30778969]
[1642968476264,0.0866,2398.4,2397.5,0.30778969]
[1642968476461,0.0866,2398.4,2397.3,0.01244212]
[1642968476908,0.1668,2398.3,2397.3,0.01244212]
[1642968477310,0.0866,2398.2,2397.3,0.01244212]
[1642968477511,0.82424732,2397.6,2396.4,4.3414744]
[1642968477710,1.50079709,2397.2,2396.7,0.01291615]
[1642968477913,1.50079709,2397.2,2396.0,2.0877493]
[1642968478309,1.50079709,2397.2,2395.9,0.06239201]
[1642968478711,0.47737584,2396.9,2396.3,0.5941422]
[1642968478911,0.0866,2397.1,2396.3,0.5941422]
[1642968479109,1.50079709,2397.2,2396.3,0.5941422]
[1642968479317,0.1668,2397.6,2396.3,0.5941422]
[1642968479512,0.1668,2398.3,2396.5,0.01244528]
[1642968479709,0.0866,2398.3,2397.1,0.01281907]
[1642968479912,0.1668,2398.2,2397.1,0.01281907]
[1642968480312,1.19154718,2397.9,2397.2,1.1518386]
[1642968480564,1.19154718,2397.9,2397.1,0.01281907]
[1642968481163,0.93735095,2397.4,2397.1,0.01281907]
[1642968481362,1.50013588,2397.3,2397.1,0.01281907]
[1642968481562,0.0866,2398.0,2396.6,1.36672913]
[1642968481763,0.0866,2398.0,2396.7,0.01242512]
[1642968482162,1.4668,2398.3,2396.7,0.01242512]
[1642968482163,0.2534,2398.3,2396.7,0.01242512]
[1642968482364,1.2534,2398.3,2396.7,0.01242512]
[1642968482662,1.16285588,2397.6,2396.7,0.01242512]
[1642968482864,0.61743408,2397.3,2396.7,0.01242512]
[1642968483666,0.68418908,2396.9,2396.2,0.20848]
[1642968483866,0.68418908,2396.9,2396.0,2.0877817]
[1642968483867,0.2222,2397.1,2396.1,0.01202111]
[1642968484067,1.31308234,2396.8,2396.1,1.15733726]
[1642968484302,1.31308234,2396.8,2396.1,0.01202111]
[1642968484704,2.12818234,2396.8,2396.1,0.01202111]
[1642968484907,3.00206424,2396.8,2396.2,0.5941422]
[1642968485103,2.12818234,2396.8,2396.2,0.5941422]
[1642968485708,2.12818234,2396.8,2396.2,0.59323347]
[1642968487011,2.21478234,2396.8,2396.2,0.59323347]
[1642968487210,2.12818234,2396.8,2396.2,0.59323347]
[1642968487412,2.21478234,2396.8,2396.2,0.59323347]
[1642968487812,1.24617188,2396.4,2396.1,0.01202111]
[1642968488060,1.24617188,2396.4,2395.9,0.04999999]
[1642968488261,1.24617188,2396.4,2395.4,0.01223521]
[1642968488458,2.55206647,2396.3,2395.4,0.01223521]
[1642968488656,3.64790407,2396.3,2395.4,0.01223521]
[1642968488858,1.12524968,2396.3,2395.4,0.60546868]
[1642968489157,1.0754,2396.3,2395.4,0.60546868]
[1642968489357,0.9086,2396.3,2395.4,0.60546868]
[1642968489562,0.1668,2396.5,2395.4,0.60546868]
[1642968489563,0.0866,2396.4,2395.4,0.60546868]
[1642968489758,0.1668,2396.3,2395.4,0.60546868]
[1642968489959,1.26067998,2396.3,2395.6,1.19991153]
[1642968490359,1.26067998,2396.3,2395.4,0.59323347]
[1642968490559,1.09387998,2396.3,2395.4,0.59323347]
[1642968490958,1.1668,2396.7,2395.4,24.69323347]
[1642968490959,0.1668,2396.7,2395.4,24.69323347]
[1642968491162,0.96133088,2397.1,2395.7,0.01272136]
[1642968491358,0.22479997,2397.2,2395.8,0.495]
[1642968491359,0.13819997,2397.2,2395.8,0.495]
[1642968491559,0.13819997,2397.2,2395.8,0.4118]
[1642968491804,1.28654065,2397.7,2396.3,0.01219264]
[1642968492006,1.49724639,2397.1,2396.4,1.25711272]
[1642968492504,6.78499997,2397.8,2396.4,1.25711272]
[1642968492708,1.25299997,2397.8,2396.4,1.25711272]
[1642968492907,1.25299997,2397.8,2396.9,0.01292875]
[1642968492908,0.08819997,2397.8,2396.9,0.01292875]
[1642968493511,1.46826714,2397.7,2397.0,1.16704872]
[1642968493712,0.88335383,2397.8,2397.0,1.16704872]
[1642968493713,0.08819997,2397.8,2397.0,1.16704872]
[1642968493915,0.1544,2398.4,2397.1,2.82103178]
[1642968494114,0.1544,2398.6,2397.1,2.82103178]
[1642968494316,0.1544,2398.6,2397.2,0.20848]
[1642968494516,0.61223631,2398.5,2397.5,0.01288017]
[1642968494712,1.36643913,2398.0,2397.5,0.01288017]
[1642968494921,0.85683162,2397.6,2397.0,0.04999999]
[1642968495115,0.85683162,2397.6,2396.5,4.63941466]
[1642968495116,0.61223631,2397.6,2396.5,0.01221466]
[1642968495320,0.1545,2397.5,2396.5,0.01221466]
[1642968495578,1.80483631,2397.5,2395.8,0.17917555]
[1642968495770,2.27263926,2397.4,2395.8,0.17917555]
[1642968495965,0.1545,2397.3,2395.8,0.17917555]
[1642968496166,1.53503097,2396.4,2395.8,0.17917555]
[1642968496369,0.43198187,2396.1,2395.8,0.17917555]
[1642968496571,0.43198187,2396.1,2395.4,0.59323347]
[1642968496765,0.59038132,2396.2,2395.4,0.59323347]
[1642968496965,2.60973097,2396.4,2395.4,0.59323347]
[1642968496966,0.59038132,2396.3,2395.4,0.59323347]
[1642968497577,0.59038132,2396.3,2395.6,0.01265615]
[1642968497966,0.59038132,2396.3,2395.7,0.20848]
[1642968498166,0.59038132,2396.3,2395.7,0.37528]
[1642968498369,0.47282398,2396.3,2395.9,1.38961502]
[1642968498569,2.42653926,2397.6,2396.3,0.94564795]
[1642968498767,0.47282398,2397.5,2396.3,1.15412795]
[1642968498967,0.7795698,2397.2,2396.3,1.75412795]
[1642968499168,1.25239378,2397.2,2396.3,1.75412795]
[1642968499606,1.47391836,2397.0,2396.3,1.75412795]
[1642968499812,0.47282398,2397.0,2396.4,1.36072306]
[1642968500016,0.47282398,2397.0,2396.4,2.36072306]
[1642968500416,0.82416553,2397.0,2396.4,2.36072306]
[1642968500612,0.82416553,2397.0,2396.4,5.18223715]
[1642968500814,0.82416553,2397.0,2396.4,2.36072306]
[1642968501214,0.82416553,2397.0,2396.3,0.94564795]
[1642968501615,2.34424454,2397.2,2396.3,0.94564795]
[1642968501616,0.82416553,2397.1,2396.3,0.94564795]
[1642968502317,0.82416553,2397.1,2396.3,1.24564795]
[1642968504458,0.14432,2397.0,2396.3,1.24564795]
[1642968504659,1.1151348,2397.0,2396.3,1.24564795]
[1642968504861,1.13130322,2396.8,2396.3,1.19564795]
[1642968505059,0.14432,2396.7,2396.3,1.19564795]
[1642968505259,1.1151348,2396.7,2396.3,1.19564795]
[1642968506902,1.1151348,2396.7,2396.3,0.94564795]
[1642968509407,1.1151348,2396.7,2396.3,0.89564795]
[1642968510214,1.13015865,2396.4,2396.3,0.89564795]
[1642968510414,2.26461456,2396.4,2396.3,0.89564795]
[1642968510664,3.06381456,2396.4,2396.3,0.89564795]
[1642968514507,3.21821456,2396.4,2396.3,0.89564795]
[1642968514713,3.21821456,2396.4,2395.3,7.0507672]
[1642968514714,0.14432,2396.2,2395.3,3.6172]
[1642968514911,0.14432,2396.2,2395.2,0.18819996]
[1642968514912,1.29701689,2396.2,2395.2,0.18819996]
[1642968515108,1.14261689,2396.2,2395.2,0.18819996]
[1642968515711,0.1544,2396.3,2395.3,0.59323347]
[1642968515712,0.14432,2395.5,2395.3,0.59323347]
[1642968515914,1.18582,2395.5,2395.3,0.59323347]
[1642968516111,2.18411689,2395.5,2395.3,0.59323347]
[1642968518161,0.1544,2396.0,2395.4,7.7]
[1642968518367,0.79876208,2396.0,2395.9,3.962433]
[1642968518962,0.79876208,2396.0,2395.9,4.962433]
[1642968519163,1.158,2397.2,2395.9,5.12766294]
[1642968519164,0.79876208,2396.5,2395.9,5.12766294]
[1642968519362,0.79876208,2396.7,2395.9,6.42766294]
[1642968519562,0.79876208,2396.7,2395.9,5.12766294]
[1642968519761,0.79876208,2396.7,2395.9,5.42766294]
[1642968519968,0.79876208,2396.7,2396.0,3.11407346]
[1642968520163,0.79876208,2396.7,2396.0,3.48935346]
[1642968520362,0.1544,2397.5,2396.0,3.28087346]
[1642968520565,0.1544,2397.5,2396.1,0.20848]
[1642968520763,0.1544,2397.5,2396.0,3.11407346]
[1642968521062,1.14142996,2397.2,2396.0,0.3]
[1642968521267,0.68432322,2397.0,2396.1,2.36788342]
[1642968521564,0.68432322,2397.0,2396.1,2.66788342]
[1642968522006,1.14142996,2397.2,2396.4,1.41771539]
[1642968523010,0.92665915,2397.5,2396.5,2.80665636]
[1642968523212,0.92665915,2397.5,2396.5,2.82390159]
[1642968523413,0.77225915,2397.5,2396.4,3.19561539]
[1642968523611,0.08819997,2397.7,2396.5,1.0]
[1642968523818,0.1544,2397.6,2396.5,1.0]
[1642968524212,1.19471508,2397.1,2396.5,1.0]
[1642968524412,1.19471508,2397.1,2396.4,2.03025866]
[1642968524615,0.89580545,2397.5,2396.4,2.03025866]
[1642968524811,0.89580545,2397.5,2396.4,1.73025866]
[1642968525013,0.1544,2397.6,2396.4,0.31254327]
[1642968525212,0.1544,2397.6,2396.4,0.61254327]
[1642968525411,0.1544,2397.6,2396.4,0.01254327]
[1642968526056,0.86036859,2397.6,2396.4,0.01254327]
[1642968526364,0.86036859,2397.6,2396.6,1.42328961]
[1642968526365,1.46991022,2397.4,2396.6,1.42328961]
[1642968526557,0.1544,2397.3,2396.6,1.42328961]
[1642968526763,1.52178116,2397.3,2396.4,0.01254327]
[1642968527366,2.52178116,2397.3,2396.1,0.6]
[1642968527567,2.52178116,2397.3,2396.0,0.1668]
[1642968527764,1.34885803,2396.6,2395.9,3.95]
[1642968528163,2.71623919,2396.6,2395.9,3.95]
[1642968529062,2.71623919,2396.6,2396.0,0.3]
[1642968530309,3.51388414,2396.6,2396.0,0.3]
[1642968532512,2.16502611,2396.6,2396.0,0.3]
[1642968532711,2.10793209,2396.6,2396.0,0.3]
[1642968533758,3.26794221,2396.6,2396.0,0.3]
[1642968533963,2.10793209,2396.6,2396.0,1.50848]
[1642968534359,1.72177016,2396.6,2396.0,1.50848]
[1642968534560,1.72177016,2396.6,2396.0,1.3]
[1642968534861,1.72177016,2397.2,2396.0,1.3]
[1642968535061,1.3562736,2397.0,2396.2,1.43518396]
[1642968535463,3.07804376,2397.0,2396.2,2.03518396]
[1642968536262,1.72177016,2397.0,2396.3,2.67508096]
[1642968536468,1.72177016,2397.0,2396.4,0.01233538]
[1642968536469,1.76090292,2397.0,2396.4,0.01233538]
[1642968536673,1.76090292,2397.0,2396.5,0.20848]
[1642968536911,1.76090292,2397.0,2396.6,0.71179999]
[1642968537113,1.76090292,2397.0,2396.6,1.31179999]
[1642968537313,1.76090292,2397.0,2396.8,1.50859827]
[1642968537518,1.76090292,2397.0,2396.8,2.96469827]
[1642968537818,1.76090292,2397.7,2396.9,7.35]
[1642968538018,1.76090292,2397.8,2397.0,1.0]
[1642968538222,1.76090292,2397.8,2397.0,1.495]
[1642968538422,1.76090292,2397.8,2397.1,2.76214922]
[1642968538624,1.76090292,2397.8,2397.4,1.5323408]
[1642968539019,1.76090292,2397.8,2397.4,2.1323408]
[1642968540422,1.02652065,2397.8,2397.4,2.8867408]
[1642968540665,1.02652065,2397.8,2397.5,1.0]
[1642968540868,1.02652065,2397.8,2397.4,2.8867408]
[1642968541262,1.02652065,2397.8,2397.5,1.0]
[1642968541464,1.02652065,2397.8,2397.5,1.20848]
[1642968541772,0.04,2397.9,2397.8,7.7]
[1642968541971,0.04,2398.8,2397.8,9.495]
[1642968541972,1.02652065,2398.6,2397.8,9.495]
[1642968542168,0.04,2398.8,2398.0,0.01257631]
[1642968542169,1.02652065,2398.7,2398.0,0.01257631]
[1642968542364,0.30966069,2398.7,2398.1,0.495]
[1642968542569,0.30966069,2398.7,2398.4,1.2543301]
[1642968542775,0.30966069,2398.7,2398.5,0.3]
[1642968542971,0.30966069,2398.7,2398.5,1.988]
[1642968543169,0.30966069,2398.7,2398.6,0.20848]
[1642968544409,0.04,2398.8,2398.6,0.20848]
[1642968545207,0.04,2398.8,2398.7,7.90848]
[1642968545607,0.04,2398.8,2398.7,8.50848]
[1642968545809,0.04,2398.8,2398.2,0.1666]
[1642968545810,1.20227311,2398.6,2398.2,0.1666]
[1642968546011,1.20227311,2398.6,2398.1,0.20848]
[1642968546012,1.20227311,2398.6,2398.1,0.1666]
[1642968546211,1.20227311,2398.6,2397.5,7.3538]
[1642968546415,2.87522554,2398.5,2397.3,0.1668]
[1642968546609,2.87522554,2398.5,2397.2,0.13819997]
[1642968546808,1.39211327,2397.7,2397.2,0.13819997]
[1642968547013,0.7790411,2398.0,2397.2,0.13819997]
[1642968547613,0.1534,2398.5,2397.3,0.20848]
[1642968547810,1.20227311,2398.6,2397.4,0.1668]
[1642968548060,1.20227311,2398.6,2397.5,0.495]
[1642968548461,1.50568538,2398.2,2397.5,0.70348]
[1642968548662,1.50568538,2398.2,2397.6,1.0]
[1642968548863,1.50568538,2398.2,2397.7,0.3]
[1642968549964,1.20227311,2398.6,2397.7,0.3]
[1642968550763,1.15227311,2398.6,2397.7,0.3]
[1642968551163,0.72143355,2398.2,2397.7,0.3]
[1642968551365,2.19097765,2398.2,2397.7,0.3]
[1642968551807,1.4695441,2398.2,2397.7,0.3]
[1642968552008,1.4695441,2398.2,2397.5,0.67508]
[1642968552212,1.4695441,2398.2,2397.5,0.50848]
[1642968552607,1.4695441,2398.2,2397.5,0.3]
[1642968552809,0.81064357,2398.0,2397.5,0.3]
[1642968553312,1.4695441,2398.2,2397.5,0.3]
[1642968553715,1.15227311,2398.6,2397.5,0.3]
[1642968554717,1.2648662,2398.1,2397.5,0.3]
[1642968555416,0.1544,2398.5,2397.6,0.20848]
[1642968555668,1.15227311,2398.6,2397.6,0.20848]
[1642968556164,1.15227311,2398.6,2397.4,3.34168493]
[1642968556363,1.24981306,2398.3,2397.4,3.55016493]
[1642968556561,2.05495937,2398.3,2397.4,3.55016493]
[1642968556766,1.24981306,2398.3,2397.4,3.55016493]
[1642968558770,1.24981306,2398.3,2397.4,1.80848]
[1642968558968,1.24981306,2398.3,2397.3,0.1668]
[1642968559176,0.67532384,2397.6,2397.3,0.1668]
[1642968559408,0.22446096,2398.2,2397.0,0.20848]
[1642968559806,1.09633649,2397.4,2397.0,0.20848]
[1642968560308,1.09633649,2397.4,2396.8,0.1668]
[1642968560511,1.09633649,2397.4,2396.6,0.25847999]
[1642968560512,0.90595072,2397.3,2396.6,0.25847999]
[1642968561006,0.3824958,2396.9,2396.7,2.36730467]
[1642968561210,1.15213205,2396.8,2396.7,2.36730467]
[1642968562012,1.15213205,2396.8,2396.0,0.20848]
[1642968562408,1.15213205,2396.8,2396.0,1.3298663]
[1642968562811,1.15213205,2396.8,2396.1,1.0]
[1642968563077,1.15213205,2396.8,2395.8,0.1668]
[1642968563268,1.15213205,2396.8,2395.6,0.20871]
[1642968563269,0.72240715,2396.4,2395.6,0.20871]
[1642968563667,0.56603937,2396.0,2395.5,0.17965021]
[1642968563868,0.9744,2396.0,2395.5,0.01285021]
[1642968565770,0.9744,2396.0,2395.4,0.1668]
[1642968565969,0.9744,2396.0,2395.4,1.3]
[1642968566371,2.22739207,2396.0,2395.4,1.90731884]
[1642968566569,1.25299207,2396.0,2395.4,1.90731884]
[1642968567012,1.25299207,2396.0,2395.4,1.3]
[1642968568418,1.25299207,2396.0,2395.3,0.77411884]
[1642968568618,1.25299207,2396.0,2395.3,0.60731884]
[1642968568821,1.25299207,2396.0,2394.5,0.1668]
[1642968568822,0.1544,2395.9,2394.5,0.1668]
[1642968569020,1.27125351,2395.9,2394.4,0.20871]
[1642968569419,1.43000948,2395.4,2394.6,1.37101322]
[1642968569821,1.43000948,2395.4,2394.9,0.60731884]
[1642968570660,0.1544,2395.9,2394.9,0.60731884]
[1642968571068,0.85179937,2395.8,2394.9,0.60731884]
[1642968571267,0.1545,2395.7,2395.0,33.779249]
[1642968571469,0.1545,2395.7,2395.4,1.0]
[1642968571665,0.1545,2395.7,2395.6,6.90372553]
[1642968571862,0.1545,2395.7,2395.6,7.71243553]
[1642968572063,0.08819997,2396.7,2395.7,7.3635]
[1642968572562,8.79798,2397.2,2395.9,0.01248745]
[1642968572563,5.08068,2397.2,2395.9,0.01248745]
[1642968572764,1.27958,2397.2,2395.9,0.01248745]
[1642968572965,1.54754367,2397.0,2396.2,1.20420368]
[1642968573467,1.54754367,2397.0,2396.2,1.80420368]
[1642968573668,0.88518841,2396.8,2396.2,1.80420368]
[1642968574081,1.54754367,2397.0,2396.2,1.80420368]
[1642968574308,0.10038,2397.5,2396.2,1.80420368]
[1642968575210,0.93585992,2397.2,2396.2,1.80420368]
[1642968575409,1.31974122,2397.0,2396.2,1.80420368]
[1642968575615,1.31974122,2397.0,2396.2,1.97100368]
[1642968575809,1.31974122,2397.0,2396.2,0.7668]
[1642968576112,1.31974122,2397.0,2396.2,0.6]
[1642968576310,1.31974122,2397.0,2396.2,0.3]
[1642968576509,1.31974122,2397.0,2396.1,0.1668]
[1642968577713,1.31974122,2397.0,2396.0,2.12011773]
[1642968580084,1.22059593,2396.6,2396.0,0.6]
[1642968580585,1.22059593,2396.6,2396.0,0.3]
[1642968580788,1.22059593,2396.6,2395.9,0.31248745]
[1642968580984,1.22059593,2396.6,2395.9,0.01248745]
[1642968581186,1.1744105,2396.2,2395.9,0.01248745]
[1642968581388,1.1744105,2396.2,2395.7,0.4635]
[1642968586062,1.1744105,2396.2,2395.7,0.7635]
[1642968586460,1.1744105,2396.2,2395.7,1.0635]
[1642968587463,1.10038,2396.9,2395.7,1.0635]
[1642968587665,0.10038,2396.9,2395.7,1.0635]
[1642968587870,2.4485,2397.2,2395.8,0.02186198]
[1642968588067,2.4485,2397.2,2395.9,0.495]
[1642968588267,2.4485,2397.2,2396.0,0.00414913]
[1642968588471,2.17132887,2397.1,2396.3,1.29919838]
[1642968588867,2.17132887,2397.1,2396.3,1.89919838]
[1642968589067,1.44283298,2397.1,2396.3,1.89919838]
[1642968589309,0.22639994,2397.4,2396.3,2.10790838]
[1642968589510,1.139,2398.2,2396.4,0.1668]
[1642968589511,9.2435,2398.0,2396.4,0.1668]
[1642968589712,2.4856,2398.0,2396.5,0.75370999]
[1642968589911,2.4856,2398.0,2396.6,0.1668]
[1642968590113,0.45045959,2397.3,2396.7,0.20871]
[1642968590312,0.45045959,2397.3,2396.5,1.21791819]
[1642968590313,1.14804054,2397.2,2396.8,0.1668]
[1642968590512,0.79557828,2396.9,2396.5,0.04999999]
[1642968591116,0.79557828,2396.9,2396.0,0.1668]
[1642968591313,0.49286824,2396.5,2395.7,0.6303]
[1642968591514,1.25656824,2396.5,2395.7,0.6303]
[1642968592610,1.30904108,2396.1,2395.7,0.6303]
[1642968592809,1.30904108,2396.1,2395.7,0.4635]
[1642968594267,2.10461936,2396.1,2395.7,0.4635]
[1642968594463,1.30904108,2396.1,2395.7,1.0635]
[1642968594663,1.30904108,2396.1,2395.7,0.4635]
[1642968595263,0.13819997,2396.8,2395.7,0.4635]
[1642968595465,0.13819997,2396.8,2396.0,0.60731884]
[1642968595766,0.13819997,2396.8,2396.1,0.01275171]
[1642968596367,1.51443494,2396.8,2396.1,0.01275171]
[1642968597011,1.51363374,2396.8,2396.1,1.01275171]
[1642968597410,1.51363374,2396.8,2396.1,0.01275171]
[1642968597709,1.51363374,2396.8,2396.1,1.01275171]
[1642968597910,0.13739877,2396.8,2396.1,0.01275171]
[1642968598111,0.13739877,2396.8,2396.1,1.01275171]
[1642968598310,0.13739877,2396.8,2396.1,0.01275171]
[1642968598509,0.13739877,2396.8,2396.1,1.01275171]
[1642968598713,0.13739877,2396.8,2396.1,0.01275171]
[1642968598911,1.37705632,2396.8,2396.1,1.01275171]
[1642968599112,0.13739877,2396.8,2396.1,1.01275171]
[1642968599711,0.88975686,2396.9,2396.1,1.01275171]
[1642968599912,0.08819997,2397.3,2396.1,1.01275171]
[1642968600313,0.08819997,2397.3,2396.2,2.36762779]
[1642968600314,1.33784963,2397.0,2396.2,2.36762779]
[1642968600566,1.98043762,2397.0,2396.2,3.96762779]
[1642968601157,0.77584694,2396.6,2396.2,3.96762779]
[1642968601361,0.64258799,2396.6,2396.2,3.96762779]
[1642968601562,0.64258799,2396.9,2396.2,1.6]
[1642968601962,0.64258799,2396.9,2396.2,0.6]
[1642968602163,0.64258799,2396.9,2396.4,1.38927996]
[1642968602365,0.64258799,2396.9,2396.4,1.68927996]
[1642968602564,0.64258799,2396.9,2396.4,1.98927996]
[1642968602964,0.56962921,2396.9,2396.4,1.98927996]
[1642968603165,0.56962921,2397.2,2396.4,1.98927996]
[1642968603365,1.50176429,2397.1,2396.4,1.98927996]
[1642968603565,2.0713935,2397.1,2396.4,1.98927996]
[1642968603767,0.79154758,2396.9,2396.4,1.68927996]
[1642968603973,0.79154758,2396.9,2396.4,1.98927996]
[1642968603974,1.36117679,2396.9,2396.4,1.98927996]
[1642968604609,1.36117679,2396.9,2396.4,0.6]
[1642968604809,1.36117679,2396.9,2396.3,0.3]
[1642968605012,1.36117679,2396.9,2396.2,2.6439051]
[1642968605410,1.36117679,2396.9,2396.2,1.6439051]
[1642968605610,1.36117679,2396.9,2396.2,2.6439051]
[1642968605810,1.36117679,2396.9,2396.2,1.6]
[1642968606011,1.36117679,2396.9,2396.2,0.6]
[1642968606313,1.36117679,2396.9,2396.2,0.3]
[1642968607810,1.36117679,2396.9,2396.3,0.02641183]
[1642968608469,0.56962921,2396.9,2396.3,0.02641183]
[1642968608668,0.52111193,2396.9,2396.3,0.02641183]
[1642968608871,0.52111193,2396.9,2396.2,0.3]
[1642968609268,2.7274254,2397.9,2396.3,0.6618]
[1642968609269,0.52111193,2397.2,2396.3,0.6618]
[1642968609469,0.85928462,2397.4,2396.4,0.00921134]
[1642968609668,1.38039655,2397.4,2396.4,0.56778004]
[1642968610168,1.41718412,2397.3,2396.4,0.56778004]
[1642968610369,1.75308424,2397.3,2396.6,1.3272269]
[1642968610567,1.75308424,2397.3,2396.6,1.9272269]
[1642968610769,1.75308424,2397.3,2396.6,2.9272269]
[1642968611068,0.4291619,2397.0,2396.6,1.6]
[1642968611275,0.76506202,2397.0,2396.5,2.36738518]
[1642968611474,1.70946202,2397.0,2396.5,2.66738518]
[1642968611680,1.70946202,2397.0,2396.5,2.36738518]
[1642968612314,1.21890203,2396.9,2396.5,2.36738518]
[1642968612518,1.5645522,2396.9,2396.5,2.36738518]
[1642968612917,4.02621091,2396.9,2396.1,2.36738518]
[1642968613124,0.10038,2396.8,2396.1,2.36738518]
[1642968613320,0.44603017,2396.8,2396.1,2.36738518]
[1642968613519,0.94103017,2396.8,2396.1,2.36738518]
[1642968613919,1.94103017,2396.8,2396.1,2.36738518]
[1642968614123,0.81155052,2396.7,2396.0,33.556528]
[1642968614327,1.21149067,2396.5,2396.0,33.556528]
[1642968615424,0.10038,2396.4,2396.0,33.556528]
[1642968615696,2.5001396,2396.4,2396.0,33.556528]
[1642968616294,0.3,2396.3,2396.0,33.556528]
[1642968616591,4.00038,2396.1,2396.0,33.556528]
[1642968616790,1.46718685,2396.1,2396.0,33.556528]
[1642968617994,1.76718685,2396.1,2396.0,33.556528]
[1642968618398,1.76718685,2396.1,2394.7,0.1668]
[1642968618399,6.9,2395.9,2394.7,0.1668]
[1642968618601,1.68056273,2395.8,2394.7,0.1668]
[1642968618798,4.7332428,2395.8,2394.7,0.1668]
[1642968619001,5.0332428,2395.8,2394.7,0.1668]
[1642968619309,5.0332428,2395.8,2394.8,2.36943961]
[1642968619518,0.81155052,2395.1,2394.8,2.36943961]
[1642968619711,4.63719332,2395.1,2394.8,2.36943961]
[1642968621813,4.63719332,2395.1,2394.3,0.65731884]
[1642968621814,4.63719332,2395.1,2394.6,2.36943961]
[1642968622021,3.8756428,2395.1,2394.6,2.96943961]
[1642968622217,3.8756428,2395.1,2394.6,3.04239828]
[1642968622218,2.67059528,2395.1,2394.6,3.04239828]
[1642968622418,2.99334728,2395.1,2395.0,7.71248596]
[1642968622617,2.99334728,2395.1,2395.0,9.82219596]
[1642968622815,2.99334728,2395.1,2395.0,9.89515463]
[1642968623072,3.35565279,2395.9,2395.5,1.20727945]